[Event "*** Titled Tuesday Blitz"]
[Site "Chess.com"]
[Date "2021.02.02"]
[Round "5"]
[White "JiiHart"]
[Black "LisikValera"]
[Result "0-1"]
[WhiteElo "2124"]
[BlackElo "2473"]
[TimeControl "180+1"]
[EndTime "10:57:09 PST"]
[Termination "LisikValera won by resignation"]

1. e4 {[%clk 0:03:00.9]} 1... e6 {[%clk 0:02:55.9]} 2. d4 {[%clk 0:03:00.1]}
2... d5 {[%clk 0:02:49.1]} 3. Nc3 {[%clk 0:02:59.8]} 3... Bb4 {[%clk 0:02:48]}
4. e5 {[%clk 0:02:59.4]} 4... Ne7 {[%clk 0:02:48.2]} 5. a3 {[%clk 0:02:54.9]}
5... Bxc3+ {[%clk 0:02:48.1]} 6. bxc3 {[%clk 0:02:55.3]} 6... c5 {[%clk
0:02:48.5]} 7. Qg4 {[%clk 0:02:49.8]} 7... O-O {[%clk 0:02:47]} 8. Bd3 {[%clk
0:02:42.8]} 8... f5 {[%clk 0:02:46.5]} 9. exf6 {[%clk 0:02:40.9]} 9... Rxf6
{[%clk 0:02:46.6]} 10. Qg3 {[%clk 0:02:12.2]} 10... Nbc6 {[%clk 0:02:41.6]} 11.
Bg5 {[%clk 0:02:03.7]} 11... Rf7 {[%clk 0:02:40.9]} 12. Ne2 {[%clk 0:01:56.1]}
12... c4 {[%clk 0:02:39.3]} 13. Bxh7+ {[%clk 0:01:52.3]} 13... Kxh7 {[%clk
0:02:40.2]} 14. Qh4+ {[%clk 0:01:45.8]} 14... Kg8 {[%clk 0:02:39.3]} 15. Nf4
{[%clk 0:01:45.6]} 15... Qf8 {[%clk 0:02:25.3]} 16. O-O {[%clk 0:01:26.3]} 16...
e5 {[%clk 0:02:17.1]} 17. dxe5 {[%clk 0:01:11.1]} 17... Nxe5 {[%clk 0:02:18]}
18. Bxe7 {[%clk 0:00:52.2]} 18... Qxe7 {[%clk 0:02:18.9]} 19. Qxe7 {[%clk
0:00:50.6]} 19... Rxe7 {[%clk 0:02:18.2]} 20. Nxd5 {[%clk 0:00:51.2]} 20... Rd7
{[%clk 0:02:16.8]} 21. Rad1 {[%clk 0:00:48.3]} 21... Kf7 {[%clk 0:02:10]} 22. h3
{[%clk 0:00:38.8]} 22... Nc6 {[%clk 0:02:09]} 23. f4 {[%clk 0:00:25.8]} 23... b6
{[%clk 0:02:06.8]} 24. Rfe1 {[%clk 0:00:18.6]} 24... Bb7 {[%clk 0:02:03.7]} 25.
g4 {[%clk 0:00:18.8]} 25... Rad8 {[%clk 0:02:02.1]} 26. Ne3 {[%clk 0:00:17.1]}
26... Rxd1 {[%clk 0:02:00.9]} 27. Rxd1 {[%clk 0:00:17.4]} 27... Rxd1+ {[%clk
0:02:00.7]} 28. Nxd1 {[%clk 0:00:18.3]} 28... Ne7 {[%clk 0:01:59.9]} 29. Kf2
{[%clk 0:00:16.9]} 29... Nd5 {[%clk 0:01:58.3]} 30. Kg3 {[%clk 0:00:17.1]} 30...
Nc7 {[%clk 0:01:51.4]} 31. h4 {[%clk 0:00:17.5]} 31... Nb5 {[%clk 0:01:51.2]}
32. a4 {[%clk 0:00:16.4]} 32... Na3 {[%clk 0:01:49.2]} 33. Ne3 {[%clk
0:00:13.3]} 33... Bc6 {[%clk 0:01:49.3]} 34. Nxc4 {[%clk 0:00:11.7]} 34... Nxc4
{[%clk 0:01:48]} 35. g5 {[%clk 0:00:10.1]} 35... Bxa4 {[%clk 0:01:45.6]} 0-1

[Event "*** Titled Tuesday Blitz"]
[Site "Chess.com"]
[Date "2021.02.02"]
[Round "5"]
[White "Ze-Pequeno"]
[Black "Leo_C"]
[Result "1-0"]
[WhiteElo "2232"]
[BlackElo "2393"]
[TimeControl "180+1"]
[EndTime "10:57:11 PST"]
[Termination "Ze-Pequeno won by resignation"]

1. e4 {[%clk 0:02:56.9]} 1... c6 {[%clk 0:02:28.8]} 2. b3 {[%clk 0:02:54.5]}
2... d5 {[%clk 0:02:28.5]} 3. Bb2 {[%clk 0:02:54.5]} 3... dxe4 {[%clk
0:02:27.9]} 4. Nc3 {[%clk 0:02:54.9]} 4... Bf5 {[%clk 0:02:27.6]} 5. Nge2 {[%clk
0:02:55]} 5... Nf6 {[%clk 0:02:26.9]} 6. Ng3 {[%clk 0:02:54.7]} 6... Bg4 {[%clk
0:02:21.7]} 7. f3 {[%clk 0:02:53.3]} 7... exf3 {[%clk 0:02:21.1]} 8. gxf3 {[%clk
0:02:53.9]} 8... Be6 {[%clk 0:02:15.2]} 9. Qe2 {[%clk 0:02:51.9]} 9... g6 {[%clk
0:02:12.9]} 10. O-O-O {[%clk 0:02:40.8]} 10... Bg7 {[%clk 0:02:11.2]} 11. h4
{[%clk 0:02:41.2]} 11... h5 {[%clk 0:02:10.3]} 12. Rg1 {[%clk 0:02:33.3]} 12...
Nbd7 {[%clk 0:02:04]} 13. Nce4 {[%clk 0:02:04]} 13... Qb6 {[%clk 0:01:58.9]} 14.
d4 {[%clk 0:01:40.9]} 14... Nxe4 {[%clk 0:01:34.6]} 15. Nxe4 {[%clk 0:01:39.6]}
15... Bf5 {[%clk 0:01:27]} 16. Nd6+ {[%clk 0:01:31.5]} 16... Kf8 {[%clk
0:01:26.5]} 17. Nxf5 {[%clk 0:01:30.3]} 17... gxf5 {[%clk 0:01:27.4]} 18. Rxg7
{[%clk 0:01:26.2]} 18... Kxg7 {[%clk 0:01:24.6]} 19. Qxe7 {[%clk 0:01:24.7]}
19... Nf6 {[%clk 0:01:12.7]} 20. Bd3 {[%clk 0:01:14.7]} 20... Rae8 {[%clk
0:00:57.3]} 21. Rg1+ {[%clk 0:01:12.1]} 21... Ng4 {[%clk 0:00:56.9]} 22. d5+
{[%clk 0:00:55.3]} 22... Kg8 {[%clk 0:00:37.2]} 23. Qxe8+ {[%clk 0:00:53.9]} 1-0

[Event "*** Titled Tuesday Blitz"]
[Site "Chess.com"]
[Date "2021.02.02"]
[Round "5"]
[White "Vesper2018"]
[Black "Moon_stone123"]
[Result "1-0"]
[WhiteElo "2607"]
[BlackElo "2433"]
[TimeControl "180+1"]
[EndTime "10:57:12 PST"]
[Termination "Vesper2018 won by resignation"]

1. e4 {[%clk 0:03:00.9]} 1... c6 {[%clk 0:02:59.6]} 2. Nf3 {[%clk 0:02:59.6]}
2... d5 {[%clk 0:03:00.2]} 3. exd5 {[%clk 0:02:59.9]} 3... cxd5 {[%clk
0:03:01.1]} 4. d4 {[%clk 0:03:00.5]} 4... Nf6 {[%clk 0:02:56.4]} 5. Ne5 {[%clk
0:02:58.7]} 5... Nc6 {[%clk 0:02:51.6]} 6. c3 {[%clk 0:02:54.5]} 6... g6 {[%clk
0:02:40.4]} 7. Bd3 {[%clk 0:02:50.4]} 7... Bg7 {[%clk 0:02:39.7]} 8. Nd2 {[%clk
0:02:44.8]} 8... O-O {[%clk 0:02:38.8]} 9. f4 {[%clk 0:02:44.4]} 9... Nd7 {[%clk
0:02:25.9]} 10. O-O {[%clk 0:02:38.4]} 10... f6 {[%clk 0:02:21.8]} 11. Nxc6
{[%clk 0:02:34.7]} 11... bxc6 {[%clk 0:02:22.7]} 12. f5 {[%clk 0:02:35.2]} 12...
gxf5 {[%clk 0:02:03.2]} 13. Bxf5 {[%clk 0:02:33.8]} 13... Nb6 {[%clk 0:02:03.1]}
14. Qh5 {[%clk 0:02:22.1]} 14... Bxf5 {[%clk 0:02:01.1]} 15. Qxf5 {[%clk
0:02:19.4]} 15... Qd7 {[%clk 0:02:00.9]} 16. Qh5 {[%clk 0:02:19.1]} 16... e5
{[%clk 0:01:56.1]} 17. Nb3 {[%clk 0:02:16.7]} 17... Qf7 {[%clk 0:01:49.8]} 18.
Qh3 {[%clk 0:02:09.9]} 18... e4 {[%clk 0:01:49.4]} 19. Nc5 {[%clk 0:02:08.8]}
19... Nc4 {[%clk 0:01:42.8]} 20. Nd7 {[%clk 0:01:45.6]} 20... Rfd8 {[%clk
0:01:40.9]} 21. Nc5 {[%clk 0:01:25.8]} 21... Rf8 {[%clk 0:01:40.4]} 22. b3
{[%clk 0:01:08]} 22... Nd6 {[%clk 0:01:26.3]} 23. Bf4 {[%clk 0:01:04.6]} 23...
Nb5 {[%clk 0:01:24.1]} 24. a4 {[%clk 0:00:52.3]} 24... Nc7 {[%clk 0:01:22.4]}
25. Bxc7 {[%clk 0:00:48.5]} 25... Qxc7 {[%clk 0:01:20.2]} 26. Ne6 {[%clk
0:00:49.1]} 26... Qd6 {[%clk 0:01:19]} 27. Nxf8 {[%clk 0:00:46.9]} 27... Rxf8
{[%clk 0:01:19.9]} 28. Qf5 {[%clk 0:00:45.7]} 28... Rb8 {[%clk 0:01:18.6]} 29.
b4 {[%clk 0:00:44.8]} 29... Bh6 {[%clk 0:01:05.6]} 30. Qxf6 {[%clk 0:00:40.9]}
1-0

[Event "*** Titled Tuesday Blitz"]
[Site "Chess.com"]
[Date "2021.02.02"]
[Round "5"]
[White "Philosopherrr"]
[Black "Treasurechess777"]
[Result "1-0"]
[WhiteElo "2569"]
[BlackElo "2403"]
[TimeControl "180+1"]
[EndTime "10:57:24 PST"]
[Termination "Philosopherrr won by resignation"]

1. e4 {[%clk 0:03:00.9]} 1... Nf6 {[%clk 0:03:00.9]} 2. e5 {[%clk 0:03:00.4]}
2... Nd5 {[%clk 0:03:01.3]} 3. Nc3 {[%clk 0:03:01.1]} 3... Nb6 {[%clk
0:03:01.8]} 4. Nf3 {[%clk 0:03:00.9]} 4... d5 {[%clk 0:03:02.2]} 5. d4 {[%clk
0:03:01.5]} 5... Bg4 {[%clk 0:03:02.1]} 6. Be3 {[%clk 0:02:59.8]} 6... e6 {[%clk
0:03:02.3]} 7. h3 {[%clk 0:02:56.4]} 7... Bh5 {[%clk 0:03:02.3]} 8. Be2 {[%clk
0:02:51.2]} 8... c5 {[%clk 0:03:02.5]} 9. dxc5 {[%clk 0:02:43]} 9... N6d7 {[%clk
0:03:02.9]} 10. Nb5 {[%clk 0:02:43.5]} 10... Nxc5 {[%clk 0:02:54]} 11. O-O
{[%clk 0:02:39]} 11... Be7 {[%clk 0:02:46.4]} 12. c4 {[%clk 0:02:15.7]} 12...
O-O {[%clk 0:02:38.3]} 13. cxd5 {[%clk 0:02:14.3]} 13... exd5 {[%clk 0:02:38.6]}
14. Rc1 {[%clk 0:02:11]} 14... Ne6 {[%clk 0:02:37.3]} 15. Nbd4 {[%clk
0:02:07.8]} 15... Bg6 {[%clk 0:02:17.8]} 16. Nxe6 {[%clk 0:02:06.3]} 16... fxe6
{[%clk 0:02:18]} 17. Nd4 {[%clk 0:02:06.8]} 17... Bf7 {[%clk 0:02:16.4]} 18. Bg4
{[%clk 0:02:04.5]} 18... Qd7 {[%clk 0:02:13.4]} 19. f4 {[%clk 0:02:04.7]} 19...
g6 {[%clk 0:02:10.3]} 20. Be2 {[%clk 0:01:40.3]} 20... Nc6 {[%clk 0:02:09.8]}
21. Bb5 {[%clk 0:01:40.2]} 21... Rfc8 {[%clk 0:02:00.9]} 22. Nxc6 {[%clk
0:01:17.8]} 22... bxc6 {[%clk 0:02:00.2]} 23. Ba6 {[%clk 0:01:18.2]} 23... Rcb8
{[%clk 0:01:55.7]} 24. b3 {[%clk 0:01:18.5]} 24... Rb4 {[%clk 0:01:42.8]} 25.
Qd2 {[%clk 0:01:17.3]} 25... Re4 {[%clk 0:01:42]} 26. Bd3 {[%clk 0:01:15.6]}
26... Rxe3 {[%clk 0:01:40.4]} 27. Qxe3 {[%clk 0:01:14.7]} 27... Bd8 {[%clk
0:01:39.9]} 28. Kh1 {[%clk 0:01:13.7]} 28... Bb6 {[%clk 0:01:40.2]} 29. Qe2
{[%clk 0:01:12]} 29... Be8 {[%clk 0:01:38.5]} 30. Ba6 {[%clk 0:00:58.8]} 30...
h5 {[%clk 0:01:13.3]} 31. b4 {[%clk 0:00:58.4]} 31... Qe7 {[%clk 0:01:11.4]} 32.
a3 {[%clk 0:00:57.8]} 32... Bc5 {[%clk 0:00:39.3]} 33. Rxc5 {[%clk 0:00:56.5]}
1-0

[Event "*** Titled Tuesday Blitz"]
[Site "Chess.com"]
[Date "2021.02.02"]
[Round "5"]
[White "KononenkoD"]
[Black "Grammnik"]
[Result "1-0"]
[WhiteElo "2531"]
[BlackElo "2388"]
[TimeControl "180+1"]
[EndTime "10:57:26 PST"]
[Termination "KononenkoD won by resignation"]

1. d4 {[%clk 0:03:00.9]} 1... d5 {[%clk 0:02:52]} 2. c4 {[%clk 0:02:58.9]} 2...
c6 {[%clk 0:02:51.9]} 3. cxd5 {[%clk 0:02:58.3]} 3... cxd5 {[%clk 0:02:51.2]} 4.
Bf4 {[%clk 0:02:58.7]} 4... Nc6 {[%clk 0:02:51.1]} 5. e3 {[%clk 0:02:58.8]} 5...
Nf6 {[%clk 0:02:49.6]} 6. Nc3 {[%clk 0:02:59.2]} 6... Bf5 {[%clk 0:02:49.5]} 7.
Qb3 {[%clk 0:02:56.6]} 7... Na5 {[%clk 0:02:49.1]} 8. Qa4+ {[%clk 0:02:56.9]}
8... Bd7 {[%clk 0:02:49]} 9. Qc2 {[%clk 0:02:57.3]} 9... Rc8 {[%clk 0:02:46.6]}
10. Bd3 {[%clk 0:02:53.9]} 10... e6 {[%clk 0:02:41.5]} 11. Nge2 {[%clk
0:02:52.6]} 11... Be7 {[%clk 0:02:41.2]} 12. h3 {[%clk 0:02:49.3]} 12... O-O
{[%clk 0:02:40.9]} 13. O-O {[%clk 0:02:49.2]} 13... b5 {[%clk 0:02:34.2]} 14. a3
{[%clk 0:02:46.6]} 14... Nc4 {[%clk 0:02:32.5]} 15. Rfc1 {[%clk 0:02:45.3]}
15... a6 {[%clk 0:02:32]} 16. Ng3 {[%clk 0:02:42.1]} 16... h6 {[%clk 0:02:30.5]}
17. Rd1 {[%clk 0:02:26.2]} 17... Bc6 {[%clk 0:02:28.9]} 18. Qe2 {[%clk
0:02:24.1]} 18... Nd6 {[%clk 0:02:14.8]} 19. Rac1 {[%clk 0:02:18.5]} 19... Bb7
{[%clk 0:02:13.6]} 20. Bb1 {[%clk 0:02:14.6]} 20... Nde4 {[%clk 0:02:04.1]} 21.
Qd3 {[%clk 0:02:12.7]} 21... h5 {[%clk 0:01:16.2]} 22. f3 {[%clk 0:02:04]} 22...
Nxc3 {[%clk 0:01:06.2]} 23. Rxc3 {[%clk 0:01:57.2]} 23... Rxc3 {[%clk
0:01:04.7]} 24. Qxc3 {[%clk 0:01:55.4]} 24... Qc8 {[%clk 0:01:00.2]} 25. Qd3
{[%clk 0:01:55]} 25... Qc4 {[%clk 0:00:57.2]} 26. Qd2 {[%clk 0:01:29.2]} 26...
Rc8 {[%clk 0:00:55.5]} 27. Ne2 {[%clk 0:01:21.3]} 27... b4 {[%clk 0:00:51.2]}
28. Rc1 {[%clk 0:01:10.4]} 28... Qb3 {[%clk 0:00:47.1]} 29. Bc2 {[%clk
0:01:07.9]} 29... Qa2 {[%clk 0:00:42.2]} 30. axb4 {[%clk 0:01:00.5]} 30... Qxb2
{[%clk 0:00:41.6]} 31. Bh7+ {[%clk 0:00:59.8]} 31... Kxh7 {[%clk 0:00:34.9]} 32.
Qxb2 {[%clk 0:01:00.4]} 1-0

[Event "*** Titled Tuesday Blitz"]
[Site "Chess.com"]
[Date "2021.02.02"]
[Round "5"]
[White "francyIM"]
[Black "Azde"]
[Result "0-1"]
[WhiteElo "2633"]
[BlackElo "2483"]
[TimeControl "180+1"]
[EndTime "10:57:27 PST"]
[Termination "Azde won by resignation"]

1. e4 {[%clk 0:03:00.9]} 1... c6 {[%clk 0:02:59.5]} 2. Nf3 {[%clk 0:03:01]} 2...
d5 {[%clk 0:03:00.4]} 3. Nc3 {[%clk 0:03:01.1]} 3... dxe4 {[%clk 0:03:00]} 4.
Nxe4 {[%clk 0:03:02]} 4... Nf6 {[%clk 0:02:59.5]} 5. Nxf6+ {[%clk 0:03:02.1]}
5... exf6 {[%clk 0:03:00.4]} 6. d4 {[%clk 0:02:54.8]} 6... Na6 {[%clk
0:03:00.2]} 7. c3 {[%clk 0:02:54.1]} 7... Nc7 {[%clk 0:03:00.2]} 8. Bd3 {[%clk
0:02:54.7]} 8... Bd6 {[%clk 0:03:00.1]} 9. Qc2 {[%clk 0:02:53.9]} 9... h5 {[%clk
0:02:59.1]} 10. Be3 {[%clk 0:02:53.8]} 10... O-O {[%clk 0:02:58.3]} 11. h3
{[%clk 0:02:53.3]} 11... Nd5 {[%clk 0:02:57.9]} 12. O-O-O {[%clk 0:02:51.5]}
12... Bf4 {[%clk 0:02:55.5]} 13. Qd2 {[%clk 0:02:49.6]} 13... Qd6 {[%clk
0:02:48.2]} 14. Kb1 {[%clk 0:02:45.3]} 14... Nxe3 {[%clk 0:02:38.6]} 15. fxe3
{[%clk 0:02:44.2]} 15... Bg3 {[%clk 0:02:39.2]} 16. Nh2 {[%clk 0:02:39.9]} 16...
Bxh2 {[%clk 0:02:38]} 17. g4 {[%clk 0:02:37.2]} 17... Bg3 {[%clk 0:02:14.9]} 18.
gxh5 {[%clk 0:02:35.2]} 18... Bh4 {[%clk 0:01:53.9]} 19. Rdg1 {[%clk 0:02:33.8]}
19... Bg5 {[%clk 0:01:53.5]} 20. h6 {[%clk 0:02:30.5]} 20... Bxh6 {[%clk
0:01:53.6]} 21. Qf2 {[%clk 0:02:30.2]} 21... Qe7 {[%clk 0:01:37.8]} 22. Rxg7+
{[%clk 0:02:25.2]} 22... Kxg7 {[%clk 0:01:33.3]} 23. Rg1+ {[%clk 0:02:25.1]}
23... Bg5 {[%clk 0:01:28.1]} 24. h4 {[%clk 0:02:24.5]} 24... Rh8 {[%clk
0:01:16]} 25. hxg5 {[%clk 0:02:23]} 25... fxg5 {[%clk 0:01:16.9]} 26. e4 {[%clk
0:02:22]} 26... Bd7 {[%clk 0:01:07.3]} 27. e5 {[%clk 0:02:21.1]} 27... Rag8
{[%clk 0:00:53.4]} 28. a3 {[%clk 0:02:13.9]} 28... Be6 {[%clk 0:00:51]} 29. c4
{[%clk 0:02:11.5]} 29... Kf8 {[%clk 0:00:47.8]} 30. Re1 {[%clk 0:02:02.4]} 30...
Rh3 {[%clk 0:00:47.1]} 31. Bf1 {[%clk 0:02:01.7]} 31... Rh4 {[%clk 0:00:44.4]}
32. d5 {[%clk 0:01:58.8]} 32... cxd5 {[%clk 0:00:43.7]} 33. cxd5 {[%clk
0:01:59.7]} 33... Bxd5 {[%clk 0:00:42.5]} 34. e6 {[%clk 0:02:00.2]} 34... Bxe6
{[%clk 0:00:39.8]} 35. Ka1 {[%clk 0:02:00.3]} 35... Rf4 {[%clk 0:00:39.7]} 36.
Qxa7 {[%clk 0:01:58.8]} 36... Qf6 {[%clk 0:00:40]} 37. Bd3 {[%clk 0:01:52.1]}
37... Kg7 {[%clk 0:00:36.2]} 38. Qxb7 {[%clk 0:01:50.7]} 38... Rd8 {[%clk
0:00:33.6]} 39. Bb1 {[%clk 0:01:49.4]} 39... Rd2 {[%clk 0:00:32.7]} 40. Rh1
{[%clk 0:01:45.2]} 40... Rh4 {[%clk 0:00:32.6]} 41. Rg1 {[%clk 0:01:45]} 41...
Rhh2 {[%clk 0:00:31.2]} 0-1

[Event "*** Titled Tuesday Blitz"]
[Site "Chess.com"]
[Date "2021.02.02"]
[Round "5"]
[White "Khnykin_Nikolay"]
[Black "losersgame"]
[Result "0-1"]
[WhiteElo "2090"]
[BlackElo "2378"]
[TimeControl "180+1"]
[EndTime "10:57:30 PST"]
[Termination "losersgame won by checkmate"]

1. d4 {[%clk 0:03:00.9]} 1... Nf6 {[%clk 0:02:59.6]} 2. Nc3 {[%clk 0:02:59.3]}
2... d5 {[%clk 0:02:55.6]} 3. Bf4 {[%clk 0:02:58.3]} 3... g6 {[%clk 0:02:47.5]}
4. e3 {[%clk 0:02:56.6]} 4... Bg7 {[%clk 0:02:47.5]} 5. Nf3 {[%clk 0:02:55.3]}
5... O-O {[%clk 0:02:46.3]} 6. Bd3 {[%clk 0:02:53.7]} 6... Bf5 {[%clk
0:02:41.8]} 7. Bxf5 {[%clk 0:02:52.7]} 7... gxf5 {[%clk 0:02:41.9]} 8. Qd3
{[%clk 0:02:49.5]} 8... e6 {[%clk 0:02:41.1]} 9. O-O-O {[%clk 0:02:46.9]} 9...
c5 {[%clk 0:02:37.7]} 10. dxc5 {[%clk 0:02:44.5]} 10... Ne4 {[%clk 0:02:37.1]}
11. Rhf1 {[%clk 0:02:19.5]} 11... Nd7 {[%clk 0:01:53.5]} 12. Bd6 {[%clk
0:02:09.4]} 12... Ndxc5 {[%clk 0:01:51.7]} 13. Bxc5 {[%clk 0:02:07.1]} 13...
Nxc5 {[%clk 0:01:52.6]} 14. Qb5 {[%clk 0:02:03.2]} 14... Rc8 {[%clk 0:01:52.3]}
15. Na4 {[%clk 0:01:42.5]} 15... a6 {[%clk 0:01:45.3]} 16. Qb4 {[%clk
0:01:34.6]} 16... Ne4 {[%clk 0:01:28]} 17. Nd2 {[%clk 0:01:13.4]} 17... b5
{[%clk 0:01:09.9]} 18. Nxe4 {[%clk 0:01:03.4]} 18... fxe4 {[%clk 0:01:10.8]} 19.
Nc5 {[%clk 0:00:58.6]} 19... Qd6 {[%clk 0:01:06.7]} 20. Nd3 {[%clk 0:00:48.7]}
20... exd3 {[%clk 0:00:45.1]} 21. Qxd6 {[%clk 0:00:46.7]} 21... Rxc2+ {[%clk
0:00:45]} 22. Kb1 {[%clk 0:00:45.1]} 22... Rxb2+ {[%clk 0:00:44.6]} 23. Kc1
{[%clk 0:00:41.6]} 23... Rc8+ {[%clk 0:00:43.9]} 24. Qc7 {[%clk 0:00:25.8]}
24... Rxc7# {[%clk 0:00:42.7]} 0-1

[Event "*** Titled Tuesday Blitz"]
[Site "Chess.com"]
[Date "2021.02.02"]
[Round "5"]
[White "dukicz123"]
[Black "Tsyhanchuk_Stanislav"]
[Result "0-1"]
[WhiteElo "2582"]
[BlackElo "2446"]
[TimeControl "180+1"]
[EndTime "10:57:34 PST"]
[Termination "Tsyhanchuk_Stanislav won by resignation"]

1. e4 {[%clk 0:03:00.9]} 1... c5 {[%clk 0:03:00.5]} 2. Nf3 {[%clk 0:02:59.9]}
2... Nc6 {[%clk 0:03:01]} 3. d4 {[%clk 0:03:00.3]} 3... cxd4 {[%clk 0:03:01.9]}
4. Nxd4 {[%clk 0:03:01.1]} 4... Qb6 {[%clk 0:03:02.4]} 5. Nb3 {[%clk 0:03:00.1]}
5... Nf6 {[%clk 0:03:02.6]} 6. Nc3 {[%clk 0:03:00]} 6... e6 {[%clk 0:03:03.2]}
7. Qe2 {[%clk 0:03:00.7]} 7... Bb4 {[%clk 0:03:02.7]} 8. Bd2 {[%clk 0:02:43.4]}
8... O-O {[%clk 0:03:02.2]} 9. O-O-O {[%clk 0:02:42.9]} 9... a5 {[%clk
0:03:02.1]} 10. a4 {[%clk 0:02:10.8]} 10... d5 {[%clk 0:03:00.3]} 11. exd5
{[%clk 0:01:33.8]} 11... exd5 {[%clk 0:03:01.2]} 12. Be3 {[%clk 0:01:34.1]}
12... Qd8 {[%clk 0:02:56.9]} 13. Nb5 {[%clk 0:01:34.5]} 13... Bf5 {[%clk
0:02:56.5]} 14. f3 {[%clk 0:01:22.5]} 14... Re8 {[%clk 0:02:55.4]} 15. Qf2
{[%clk 0:01:21.6]} 15... Rc8 {[%clk 0:02:54.6]} 16. N5d4 {[%clk 0:01:00.1]}
16... Nxd4 {[%clk 0:02:54.2]} 17. Nxd4 {[%clk 0:01:01]} 17... Bg6 {[%clk
0:02:45.5]} 18. g4 {[%clk 0:01:00.6]} 18... Qc7 {[%clk 0:02:29]} 19. Bd3 {[%clk
0:00:58.6]} 19... Bc5 {[%clk 0:02:08.4]} 20. Rhe1 {[%clk 0:00:42.7]} 20... Qb6
{[%clk 0:01:59.2]} 21. Bf5 {[%clk 0:00:34.8]} 21... Rcd8 {[%clk 0:01:52.2]} 22.
Qd2 {[%clk 0:00:31.9]} 22... Nd7 {[%clk 0:01:44]} 23. h4 {[%clk 0:00:26.3]}
23... Ne5 {[%clk 0:01:42.4]} 24. Qc3 {[%clk 0:00:19.4]} 24... Nc4 {[%clk
0:01:39.4]} 25. Bf2 {[%clk 0:00:16.4]} 25... Rxe1 {[%clk 0:01:35.4]} 26. Rxe1
{[%clk 0:00:16.7]} 26... Bb4 {[%clk 0:01:35.2]} 27. Qb3 {[%clk 0:00:15.8]} 27...
Bxe1 {[%clk 0:01:34.8]} 28. Bxe1 {[%clk 0:00:16.3]} 28... Qxd4 {[%clk
0:01:33.3]} 29. Qd3 {[%clk 0:00:06.5]} 29... Qg1 {[%clk 0:01:29.5]} 30. Qd1
{[%clk 0:00:03.7]} 30... Bxf5 {[%clk 0:01:28.2]} 31. gxf5 {[%clk 0:00:03.1]}
31... Ne3 {[%clk 0:01:25.8]} 32. Qd2 {[%clk 0:00:02.9]} 32... Ng2 {[%clk
0:01:25.8]} 33. Kd1 {[%clk 0:00:02.7]} 33... Re8 {[%clk 0:01:26.2]} 34. Qe2
{[%clk 0:00:02.2]} 0-1

[Event "*** Titled Tuesday Blitz"]
[Site "Chess.com"]
[Date "2021.02.02"]
[Round "5"]
[White "Taabling"]
[Black "chessmadara"]
[Result "1-0"]
[WhiteElo "2327"]
[BlackElo "2138"]
[TimeControl "180+1"]
[EndTime "10:57:34 PST"]
[Termination "Taabling won by resignation"]

1. e4 {[%clk 0:03:00.9]} 1... c5 {[%clk 0:02:59.8]} 2. Nf3 {[%clk 0:02:59.8]}
2... d6 {[%clk 0:02:59.5]} 3. c3 {[%clk 0:02:59.3]} 3... Nf6 {[%clk 0:02:58.7]}
4. h3 {[%clk 0:02:59]} 4... g6 {[%clk 0:02:55.6]} 5. Bb5+ {[%clk 0:02:55]} 5...
Bd7 {[%clk 0:02:53]} 6. Bd3 {[%clk 0:02:49.2]} 6... Bg7 {[%clk 0:02:51.2]} 7.
Bc2 {[%clk 0:02:30.1]} 7... Bc6 {[%clk 0:02:51]} 8. d3 {[%clk 0:02:25.9]} 8...
O-O {[%clk 0:02:50.2]} 9. O-O {[%clk 0:02:24.8]} 9... Na6 {[%clk 0:02:31.9]} 10.
Re1 {[%clk 0:02:24.4]} 10... Rc8 {[%clk 0:02:25]} 11. Nbd2 {[%clk 0:02:23.1]}
11... b5 {[%clk 0:02:09.5]} 12. Nf1 {[%clk 0:02:21.2]} 12... b4 {[%clk
0:02:06.2]} 13. Bd2 {[%clk 0:02:19.3]} 13... bxc3 {[%clk 0:02:03.4]} 14. bxc3
{[%clk 0:02:19.2]} 14... Nc7 {[%clk 0:02:02.9]} 15. Rb1 {[%clk 0:02:12.9]} 15...
Nb5 {[%clk 0:02:01.2]} 16. d4 {[%clk 0:02:07.7]} 16... Na3 {[%clk 0:01:54.3]}
17. Rb3 {[%clk 0:01:54.9]} 17... Nxc2 {[%clk 0:01:52.7]} 18. Qxc2 {[%clk
0:01:54.3]} 18... cxd4 {[%clk 0:01:52.9]} 19. Qb1 {[%clk 0:01:49.9]} 19... dxc3
{[%clk 0:01:26.2]} 20. Bxc3 {[%clk 0:01:43.4]} 20... Ba8 {[%clk 0:01:18.7]} 21.
Bd4 {[%clk 0:01:41]} 21... a5 {[%clk 0:01:13.3]} 22. N1d2 {[%clk 0:01:40.9]}
22... a4 {[%clk 0:01:13]} 23. Rb4 {[%clk 0:01:40.8]} 23... Qa5 {[%clk
0:01:07.9]} 24. a3 {[%clk 0:01:40.2]} 24... d5 {[%clk 0:00:41.6]} 25. e5 {[%clk
0:01:36.9]} 25... Ne4 {[%clk 0:00:41.7]} 26. Qb2 {[%clk 0:01:22.2]} 26... Nxd2
{[%clk 0:00:36.6]} 27. Nxd2 {[%clk 0:01:18.4]} 27... Qa6 {[%clk 0:00:33.8]} 28.
e6 {[%clk 0:01:14.8]} 28... fxe6 {[%clk 0:00:29.4]} 29. Bxg7 {[%clk 0:01:13.9]}
29... Rf7 {[%clk 0:00:25]} 30. Bd4 {[%clk 0:01:13.1]} 30... Qd3 {[%clk
0:00:23.4]} 31. Nf3 {[%clk 0:01:10.8]} 1-0

[Event "*** Titled Tuesday Blitz"]
[Site "Chess.com"]
[Date "2021.02.02"]
[Round "5"]
[White "flexova"]
[Black "PawnEatingZombie"]
[Result "1-0"]
[WhiteElo "2419"]
[BlackElo "2233"]
[TimeControl "180+1"]
[EndTime "10:57:42 PST"]
[Termination "flexova won by resignation"]

1. e4 {[%clk 0:03:00.9]} 1... c6 {[%clk 0:03:00]} 2. d4 {[%clk 0:03:00.4]} 2...
d5 {[%clk 0:03:00.9]} 3. e5 {[%clk 0:03:00.4]} 3... Bf5 {[%clk 0:03:00.8]} 4. h4
{[%clk 0:03:00.2]} 4... h5 {[%clk 0:03:00.8]} 5. Bd3 {[%clk 0:02:59.9]} 5...
Bxd3 {[%clk 0:02:58.8]} 6. Qxd3 {[%clk 0:03:00.8]} 6... Qa5+ {[%clk 0:02:58.9]}
7. Nd2 {[%clk 0:03:00.5]} 7... e6 {[%clk 0:02:57.4]} 8. c4 {[%clk 0:02:59.5]}
8... dxc4 {[%clk 0:02:46.7]} 9. Qxc4 {[%clk 0:02:58.1]} 9... Nd7 {[%clk
0:02:44.7]} 10. Nf3 {[%clk 0:02:56.5]} 10... Nh6 {[%clk 0:02:33.3]} 11. O-O
{[%clk 0:02:51.4]} 11... Nf5 {[%clk 0:02:32]} 12. a3 {[%clk 0:02:47.5]} 12...
Nb6 {[%clk 0:02:25.5]} 13. Qe2 {[%clk 0:02:36]} 13... Be7 {[%clk 0:02:25.1]} 14.
Ne4 {[%clk 0:02:31.7]} 14... Rd8 {[%clk 0:01:56.7]} 15. Rd1 {[%clk 0:02:26.4]}
15... O-O {[%clk 0:01:25.4]} 16. Bg5 {[%clk 0:01:54.2]} 16... Bxg5 {[%clk
0:01:23.6]} 17. Nfxg5 {[%clk 0:01:54]} 17... g6 {[%clk 0:01:07.3]} 18. Nf6+
{[%clk 0:01:42.7]} 18... Kg7 {[%clk 0:01:06]} 19. Nxh5+ {[%clk 0:01:36.4]} 19...
gxh5 {[%clk 0:00:51.6]} 20. Qxh5 {[%clk 0:01:37.3]} 20... Nh6 {[%clk 0:00:51.8]}
21. Rd3 {[%clk 0:01:37]} 21... Rh8 {[%clk 0:00:31.8]} 22. Rg3 {[%clk 0:01:15.2]}
22... Kf8 {[%clk 0:00:29.5]} 23. Rf3 {[%clk 0:01:07.8]} 23... Rd7 {[%clk
0:00:15.1]} 24. Nxe6+ {[%clk 0:01:07.9]} 24... Ke7 {[%clk 0:00:14.1]} 25. Qg5+
{[%clk 0:00:58.7]} 25... Kxe6 {[%clk 0:00:09]} 26. Rf6+ {[%clk 0:00:58.6]} 26...
Kd5 {[%clk 0:00:09.1]} 27. e6+ {[%clk 0:00:58.5]} 1-0